bitfinex/quotes_ETHUSD_20220101
["timestamp","ask_amount","ask_price","bid_price","bid_amount"]
[1641019652004,6.1,3721.5,3721.4,2.4121834]
[1641019652203,0.23967341,3721.4,3721.3,2.407e-05]
[1641019652406,4.40864146,3719.7,3719.5,5.09936841]
[1641019652606,4.40864146,3719.7,3719.5,4.81149921]
[1641019652607,4.8,3719.6,3719.5,4.81149921]
[1641019652808,0.46851387,3719.5,3718.7,2.97421487]
[1641019653105,2.0,3719.4,3718.8,0.2687]
[1641019653304,2.8511,3719.4,3719.2,2.2543796]
[1641019653565,6.33104197,3719.3,3719.2,2.2543796]
[1641019653758,6.33104197,3719.3,3718.9,4.57781168]
[1641019653759,4.85,3719.2,3718.9,4.52781168]
[1641019653957,4.89918381,3718.9,3718.4,4.62095881]
[1641019654160,4.89918381,3718.9,3717.8,10.603901]
[1641019654161,1.08016422,3718.4,3717.8,10.603901]
[1641019654357,2.0,3718.3,3717.8,10.603901]
[1641019654558,2.0,3718.3,3717.9,0.01989482]
[1641019654559,2.3,3718.3,3717.9,0.01989482]
[1641019654760,4.8,3718.1,3717.8,10.57379582]
[1641019654958,0.79784974,3718.2,3717.8,10.57379582]
[1641019654959,0.95604974,3718.2,3717.8,10.57379582]
[1641019655161,0.95775501,3718.2,3717.0,0.00447158]
[1641019655365,0.00113685,3718.1,3717.9,0.00125448]
[1641019655559,2.00113685,3718.1,3717.9,0.00125448]
[1641019655965,0.00113685,3718.1,3717.9,0.00125448]
[1641019657799,1.75808383,3718.1,3717.9,0.00125448]
[1641019658199,1.72300093,3718.1,3717.9,0.00125448]
[1641019658400,1.71238249,3718.1,3717.9,0.00125448]
[1641019658809,0.00113685,3718.1,3717.9,0.00125448]
[1641019659209,1.74393382,3718.1,3717.9,0.00125448]
[1641019660105,1.74393382,3718.1,3717.8,6.88125448]
[1641019660106,3.7,3717.9,3717.8,6.88125448]
[1641019660305,1.70284391,3718.0,3717.1,0.07404056]
[1641019660704,1.70284391,3718.0,3717.2,0.00397897]
[1641019661145,0.00113685,3718.1,3717.2,0.00397897]
[1641019661345,0.00113685,3718.1,3716.7,0.88091055]
[1641019661545,0.00113685,3718.1,3716.7,0.3]
[1641019661746,0.00454739,3718.0,3717.6,1.83389296]
[1641019662147,0.00397897,3717.9,3717.6,1.83389296]
[1641019662346,0.00397897,3717.9,3717.8,1.83389296]
[1641019662548,1.71889027,3718.1,3717.8,1.83389296]
[1641019662747,0.108076,3718.2,3717.8,1.83389296]
[1641019662949,0.00454739,3718.0,3717.8,1.83389296]
[1641019663152,0.00454739,3718.0,3717.6,1.83389296]
[1641019663352,0.108076,3718.2,3717.6,1.83389296]
[1641019663353,0.00397897,3717.9,3717.6,1.83389296]
[1641019663549,0.00397897,3717.9,3717.6,1.78389296]
[1641019663752,0.00341054,3717.8,3717.6,1.78389296]
[1641019663954,0.00341054,3717.8,3716.9,1.34471]
[1641019664153,0.108076,3718.2,3716.9,1.34471]
[1641019664154,0.00284212,3717.7,3716.9,1.64471]
[1641019664353,0.00284212,3717.7,3717.3,0.87877575]
[1641019664553,0.0022737,3717.6,3717.3,0.87877575]
[1641019665020,0.108076,3718.2,3717.3,0.87877575]
[1641019665021,0.00170527,3717.5,3717.3,0.87877575]
[1641019665419,0.00113685,3717.4,3717.3,0.87877575]
[1641019665721,0.00113685,3717.4,3717.3,4.27877575]
[1641019666119,0.00113685,3717.4,3717.3,5.27877575]
[1641019666318,0.00113685,3717.4,3717.3,1.87877575]
[1641019666719,0.00113685,3717.4,3717.0,0.00113684]
[1641019667721,0.00113685,3717.4,3717.0,1.01545478]
[1641019667921,0.00170527,3717.3,3717.1,6.18]
[1641019668224,0.00113684,3717.2,3717.1,6.18]
[1641019668881,2.07622578,3718.1,3717.1,1.0]
[1641019669082,2.18430178,3718.3,3717.0,1.01545478]
[1641019669282,0.00454739,3718.0,3717.0,1.01545478]
[1641019669483,2.08077317,3718.0,3717.0,1.01545478]
[1641019669683,0.00397897,3717.9,3717.0,1.01545478]
[1641019669881,0.00397897,3717.9,3717.0,0.96545478]
[1641019670181,0.00341054,3717.8,3717.0,0.96545478]
[1641019670581,0.00284212,3717.7,3717.0,0.96545478]
[1641019670981,0.0022737,3717.6,3717.0,0.96545478]
[1641019671383,0.00170527,3717.5,3716.8,0.00113685]
[1641019671781,0.00113685,3717.4,3716.5,0.00397896]
[1641019672183,2.07622578,3718.0,3716.5,0.00397896]
[1641019672184,0.00397897,3717.9,3716.5,0.00397896]
[1641019672413,0.00397897,3717.9,3716.9,0.91898361]
[1641019672608,2.07622578,3718.0,3716.9,0.91898361]
[1641019672609,0.00341054,3717.8,3716.9,0.91898361]
[1641019672812,0.00341054,3717.8,3717.0,0.00113684]
[1641019673008,0.00284212,3717.7,3717.0,0.00113684]
[1641019673412,0.0022737,3717.6,3717.0,0.00113684]
[1641019673812,0.00170527,3717.5,3717.0,0.00113684]
[1641019674218,0.108076,3717.9,3717.0,0.00113684]
[1641019674219,0.00113685,3717.4,3717.0,0.00113684]
[1641019674617,0.00341054,3717.8,3717.0,0.00113684]
[1641019675019,0.00284212,3717.7,3717.0,0.00113684]
[1641019675417,0.0022737,3717.6,3716.5,0.00397896]
[1641019675819,0.00170527,3717.5,3716.7,0.67247]
[1641019676260,0.00113685,3717.4,3717.0,1.00089962]
[1641019676661,0.00341054,3717.8,3717.0,1.00089962]
[1641019676860,0.00341054,3717.8,3717.0,1.67331962]
[1641019677062,0.00284212,3717.7,3717.0,1.67331962]
[1641019677460,0.0022737,3717.6,3717.0,1.00089962]
[1641019677861,0.00170527,3717.5,3717.0,1.67331962]
[1641019678263,0.108076,3717.9,3717.0,1.67331962]
[1641019678264,0.00113685,3717.4,3717.0,1.67331962]
[1641019678464,0.00113685,3717.4,3717.0,1.00089962]
[1641019678669,0.00341054,3717.8,3717.0,1.00089962]
[1641019678967,0.00284212,3717.7,3717.0,1.00089962]
[1641019679368,0.0022737,3717.6,3717.0,1.67332962]
[1641019679808,0.00170527,3717.5,3717.0,1.67332962]
[1641019680209,0.00113685,3717.4,3717.0,1.67332962]
[1641019680612,0.00341054,3717.8,3717.0,1.67332962]
[1641019680811,0.00341054,3717.8,3717.0,1.00089962]
[1641019681012,0.00284212,3717.7,3716.8,0.00349738]
[1641019681410,0.0022737,3717.6,3716.9,0.00170527]
[1641019681811,0.00170527,3717.5,3716.9,0.00170527]
[1641019682214,0.00113685,3717.4,3716.9,0.00170527]
[1641019682412,0.00113685,3717.4,3716.9,0.9349755]
[1641019682612,0.108076,3717.9,3716.9,0.9349755]
[1641019682613,0.00341054,3717.8,3716.9,0.9349755]
[1641019682811,0.00341054,3717.8,3717.0,0.00113684]
[1641019683011,0.00284212,3717.7,3717.0,0.00113684]
[1641019683412,0.0022737,3717.6,3717.0,0.00113684]
[1641019683866,0.00170527,3717.5,3717.0,0.00113684]
[1641019684264,0.00113685,3717.4,3717.0,0.00113684]
[1641019684663,0.00284212,3717.7,3717.0,0.00113684]
[1641019685064,0.0022737,3717.6,3717.0,0.00113684]
[1641019685265,2.74062488,3718.3,3717.0,0.00113684]
[1641019685666,0.00341054,3718.2,3717.0,0.00341054]
[1641019686065,0.00284212,3718.1,3717.0,0.00341054]
[1641019686468,0.00227369,3718.0,3717.4,1.32762825]
[1641019686666,1.87216892,3718.0,3717.4,1.32762825]
[1641019686865,0.00170527,3717.9,3717.4,1.27762825]
[1641019687307,0.00113684,3717.8,3717.4,1.27762825]
[1641019687504,1.7764585,3717.8,3717.4,1.27762825]
[1641019688510,2.66517848,3717.7,3717.4,1.27762825]
[1641019688912,1.72503853,3717.6,3717.4,1.27762825]
[1641019689116,2.66517848,3717.7,3717.4,1.27762825]
[1641019689314,1.70481634,3717.6,3717.4,1.27762825]
[1641019689716,1.70481634,3717.6,3717.2,1.77027462]
[1641019689916,1.70481634,3717.6,3717.1,0.00116344]
[1641019689917,0.84296412,3717.5,3717.1,0.00116344]
[1641019690214,0.84296412,3717.5,3717.3,0.00170527]
[1641019690215,1.94915823,3717.4,3717.3,0.00170527]
[1641019690415,0.84296412,3717.5,3717.2,0.0022737]
[1641019690615,2.07622578,3717.4,3717.2,0.0022737]
[1641019691069,2.66517848,3717.4,3717.2,0.0022737]
[1641019691465,3.33791848,3717.4,3717.2,0.0022737]
[1641019692163,5.41414426,3717.4,3717.2,0.0022737]
[1641019692362,5.41414426,3717.4,3717.2,7.37e-05]
[1641019692363,9.54140426,3717.3,3717.2,7.37e-05]
[1641019692563,9.54140426,3717.3,3716.4,1.83951606]
[1641019692564,4.8,3717.2,3716.4,1.83951606]
[1641019692764,4.81283421,3716.5,3716.4,1.83951606]
[1641019692962,5.78853421,3716.5,3716.4,1.83951606]
[1641019693163,5.78853421,3716.5,3716.4,1.77027462]
[1641019693364,5.78853421,3716.5,3715.8,0.00352708]
[1641019693669,0.3886,3716.6,3715.9,0.0073895]
[1641019693670,0.1397,3716.6,3715.9,0.0073895]
[1641019694066,0.67286,3716.5,3715.9,0.0073895]
[1641019694269,2.07622578,3716.8,3715.9,0.0073895]
[1641019694667,24.68772578,3716.8,3715.9,0.0073895]
[1641019694930,8.99772578,3716.8,3715.9,0.0073895]
[1641019695134,6.9215,3716.8,3715.9,0.0073895]
[1641019695334,3.8065,3716.8,3715.9,0.8555895]
[1641019695735,2.07622578,3717.1,3716.3,0.6726]
[1641019696133,0.99012446,3717.2,3716.4,0.00454738]
[1641019696333,2.07622578,3717.1,3716.4,0.00454738]
[1641019696533,2.07622578,3717.1,3716.2,0.00568423]
[1641019696733,2.07622578,3717.1,3716.0,0.00682108]
[1641019697736,0.67279,3717.0,3716.1,0.00116081]
[1641019697937,1.80961125,3716.9,3716.1,0.00116081]
[1641019698137,1.80961125,3716.9,3716.2,0.00568423]
[1641019698341,1.81318363,3717.1,3716.2,0.00568423]
[1641019698574,1.88717201,3717.4,3716.2,0.00568423]
[1641019698762,2.55987201,3717.4,3716.2,0.00568423]
[1641019699763,2.55987201,3717.4,3716.5,0.87011716]
[1641019700065,2.55987201,3717.4,3716.6,0.00341054]
[1641019700467,2.55987201,3717.4,3716.2,0.00568423]
[1641019701369,2.55987201,3717.4,3716.4,1.02929404]
[1641019701767,2.55987201,3717.4,3716.5,0.00397896]
[1641019706096,0.67283,3717.0,3716.5,0.00397896]
[1641019706292,0.67283,3717.0,3716.2,0.00568423]
[1641019706293,1.82395217,3716.9,3716.2,0.00568423]
[1641019706493,1.82395217,3716.9,3716.6,0.00341054]
[1641019706694,15.69,3717.2,3716.2,0.00568423]
[1641019706993,4.8,3716.8,3714.9,2.4071]
[1641019707193,0.67287,3716.4,3714.9,2.4071]
[1641019707397,1.72452599,3716.3,3715.0,0.00682108]
[1641019707595,1.72452599,3716.3,3715.1,1.35857617]
[1641019707794,1.89026369,3716.5,3715.1,1.35857617]
[1641019708094,0.00113685,3716.4,3715.3,1.05758827]
[1641019708494,0.00113685,3716.4,3715.4,0.00454739]
[1641019709099,0.00113685,3716.4,3715.9,0.82461177]
[1641019709299,3.0263,3716.9,3715.9,0.82461177]
[1641019709498,3.0263,3716.9,3716.0,0.0022737]
[1641019709699,0.00113684,3716.6,3716.0,0.0022737]
[1641019711414,0.00113684,3716.6,3716.5,0.97514119]
[1641019714460,0.00113684,3716.6,3716.1,0.06884205]
[1641019714859,0.00113684,3716.6,3716.2,0.00113685]
[1641019715163,0.00113684,3716.6,3716.4,1.35857617]
[1641019715663,0.00113684,3716.6,3716.4,2.19755184]
[1641019715860,2.6685234,3716.6,3716.4,0.83897567]
[1641019717327,0.00113684,3716.6,3716.4,0.83897567]
[1641019717729,0.00113684,3716.6,3716.4,2.65412442]
[1641019718124,0.00113684,3716.6,3716.5,1.37445199]
[1641019718327,0.00075962,3717.0,3716.6,2.45]
[1641019718527,0.00075962,3717.0,3716.5,1.37445199]
[1641019718730,0.00170527,3716.9,3716.5,1.37445199]
[1641019718931,0.216153,3716.7,3716.5,1.37445199]
[1641019719933,0.216153,3716.7,3716.4,1.51158567]
[1641019719934,0.216153,3716.7,3716.6,1.37445199]
[1641019720937,0.00057872,3717.0,3716.6,1.37445199]
[1641019721363,0.00057872,3717.0,3716.6,1.37558884]
[1641019722064,0.10865472,3717.0,3716.6,1.37558884]
[1641019723363,2.64310548,3716.9,3716.6,0.00113685]
[1641019723769,2.64310548,3716.9,3716.6,1.37558884]
[1641019726415,3.31586548,3716.9,3716.6,1.37558884]
[1641019727016,3.31586548,3716.9,3716.6,0.00113685]
[1641019727417,3.31586548,3716.9,3716.4,0.00227369]
[1641019727817,2.64310548,3716.8,3716.4,0.00227369]
[1641019728870,2.64310548,3716.8,3716.7,1.0629782]
[1641019729071,2.39593732,3716.8,3716.4,0.00227369]
[1641019729270,0.108076,3717.0,3716.4,0.00227369]
[1641019729271,2.39593732,3716.7,3716.4,0.00227369]
[1641019729673,2.39593732,3716.7,3716.5,0.00102569]
[1641019729870,0.108076,3717.0,3716.5,0.00102569]
[1641019730070,0.108076,3717.0,3716.6,0.95754363]
[1641019732075,0.108076,3717.0,3716.6,2.33199562]
[1641019735139,0.108076,3717.0,3716.6,0.95754363]
[1641019735939,0.108076,3717.0,3716.6,0.90754363]
[1641019736161,0.00170527,3716.9,3716.6,0.90754363]
[1641019736460,0.00113685,3716.8,3716.6,0.90754363]
[1641019736663,0.00113685,3716.8,3716.6,0.85754363]
[1641019737061,0.00113685,3716.8,3716.5,0.00102569]
[1641019737862,0.00113685,3716.8,3716.4,1.32547768]
[1641019738664,0.00113685,3716.8,3716.2,0.67266]
[1641019738966,0.00113685,3716.8,3716.3,0.00170527]
[1641019739569,0.00113685,3716.8,3716.5,0.86566273]
[1641019740028,0.00113685,3716.8,3716.6,0.00090567]
[1641019740628,0.00113685,3716.8,3716.2,0.62527094]
[1641019740828,0.0022737,3716.7,3716.2,0.62527094]
[1641019741228,0.00170527,3716.6,3716.2,0.62527094]
[1641019741431,0.00170527,3716.6,3716.3,0.80828587]
[1641019741627,0.00113685,3716.5,3716.3,0.80828587]
[1641019742029,0.00341054,3716.9,3716.3,0.80828587]
[1641019742428,0.00284212,3716.8,3716.3,0.80828587]
[1641019742830,0.0022737,3716.7,3716.3,1.48093587]
[1641019743228,0.00170527,3716.6,3716.3,1.48093587]
[1641019743682,0.00113685,3716.5,3716.3,1.48093587]
[1641019743879,0.00113685,3716.5,3716.3,1.78093587]
[1641019744079,0.00341054,3716.9,3716.3,3.27993587]
[1641019744285,0.00227369,3717.0,3716.6,0.67246]
[1641019744487,0.00227369,3717.0,3716.9,0.91154503]
[1641019745784,0.00227369,3717.0,3716.9,1.58402503]
[1641019752270,0.00227369,3717.0,3716.9,2.95301434]
[1641019753168,0.06830376,3717.5,3717.2,0.11035069]
[1641019753368,4.84516422,3718.4,3717.2,0.11035069]
[1641019753369,4.84516422,3718.4,3717.8,0.04204693]
[1641019753575,1.08016422,3718.4,3717.8,0.90104693]
[1641019753976,0.00795793,3718.3,3717.8,0.90104693]
[1641019754373,0.00738951,3718.2,3717.8,0.90104693]
[1641019754815,0.00682109,3718.1,3717.8,2.27003624]
[1641019755224,0.00625266,3718.0,3717.8,2.27003624]
[1641019755624,0.00568424,3717.9,3717.8,2.94241624]
[1641019756029,0.00568424,3717.9,3717.8,1.57342693]
[1641019760365,0.00568424,3717.9,3717.8,0.90104693]
[1641019760569,0.00568424,3717.9,3717.8,0.04204693]
[1641019761265,2.51773727,3717.9,3717.8,0.04204693]
[1641019761467,4.3199659,3717.9,3717.8,0.04204693]
[1641019762066,2.51773727,3717.9,3717.8,0.04204693]
[1641019764331,4.32842566,3717.9,3717.8,0.04204693]
[1641019765127,2.51773727,3717.9,3717.8,0.04204693]
[1641019765529,4.27033432,3717.9,3717.8,0.04204693]
[1641019765727,4.26727637,3717.9,3717.8,0.04204693]
[1641019766071,4.28755744,3717.9,3717.8,0.04204693]
[1641019766272,1.79077453,3717.9,3717.8,0.04204693]
[1641019766472,0.00568424,3717.9,3717.8,0.04204693]
[1641019770629,2.51708442,3717.9,3717.8,0.04204693]
[1641019770827,4.35609169,3717.9,3717.8,0.04204693]
[1641019771230,1.84469151,3717.9,3717.8,0.04204693]
[1641019771429,0.00568424,3717.9,3717.8,0.04204693]
[1641019776180,2.51446826,3717.9,3717.8,0.04204693]
[1641019776580,4.5748047,3717.9,3717.8,0.04204693]
[1641019777084,4.52724184,3717.9,3717.8,0.04204693]
[1641019778627,4.52724184,3717.9,3717.8,0.09254693]
[1641019778830,2.51446826,3717.9,3717.8,0.09254693]
[1641019779632,2.51446826,3717.9,3717.8,0.85079439]
[1641019784681,0.00568424,3717.9,3717.8,1.52319439]
[1641019784935,0.00568424,3717.9,3717.8,1.48114746]
[1641019785733,0.00568424,3717.9,3717.8,2.85013677]
[1641019786032,1.08016422,3718.4,3717.8,2.85013677]
[1641019786434,0.00738951,3718.2,3717.8,2.85013677]
[1641019786835,0.00682109,3718.1,3717.8,2.85013677]
[1641019787237,0.00625266,3718.0,3717.8,2.85013677]
[1641019787738,0.00568424,3717.9,3717.8,2.85013677]
[1641019787937,0.00568424,3717.9,3717.8,1.48114746]
[1641019789384,0.00568424,3717.9,3717.8,4.93114746]
[1641019789587,0.00568424,3717.9,3717.8,3.85013677]
[1641019790183,0.00568424,3717.9,3717.8,2.48114746]
[1641019790583,0.00568424,3717.9,3717.8,1.48114746]
[1641019793426,0.00568424,3717.9,3717.8,0.0505]
[1641019793828,0.00568424,3717.9,3717.6,1.8252646]
[1641019794127,0.00511581,3717.8,3717.7,0.0505]
[1641019794527,0.00511581,3717.8,3717.7,1.42510166]
[1641019794928,1.72517266,3717.8,3717.7,1.42510166]
[1641019795129,0.00511581,3717.8,3717.7,1.42510166]
[1641019796377,6.43232571,3717.8,3717.7,0.0505]
[1641019796579,8.44922132,3717.8,3717.7,0.0505]
[1641019796779,4.44922132,3717.8,3717.7,0.0505]
[1641019796979,4.44922132,3717.8,3717.5,0.0505]
[1641019797380,0.00454739,3717.7,3717.5,0.0505]
[1641019797883,0.00397897,3717.6,3717.5,0.0505]
[1641019798283,0.00454739,3717.6,3717.5,0.0505]
[1641019798685,2.43175729,3717.6,3717.5,0.0505]
[1641019798886,4.33200704,3717.6,3717.5,0.0505]
[1641019799914,1.90479714,3717.6,3717.5,0.0505]
[1641019800526,4.33200704,3717.6,3717.4,0.0505]
[1641019800722,1.83422668,3717.5,3717.4,0.0505]
[1641019800924,0.00341054,3717.5,3717.4,0.0505]
[1641019801323,0.00341054,3717.5,3717.4,2.7505]
[1641019801523,0.00341054,3717.5,3717.4,0.0505]
[1641019802522,0.00341054,3717.5,3717.4,0.0005]
[1641019803977,2.45760965,3717.5,3717.4,0.0005]
[1641019804380,0.00341054,3717.5,3717.4,0.0005]
[1641019806779,2.45766826,3717.5,3717.4,0.0005]
[1641019806980,4.31594107,3717.5,3717.4,0.0005]
[1641019808618,2.45766826,3717.5,3717.4,0.0005]
[1641019808821,4.27199059,3717.5,3717.4,0.0005]
[1641019809223,19.96199059,3717.5,3717.4,0.0005]
[1641019809822,19.96199059,3717.5,3716.9,1.8252646]
[1641019809823,4.8,3717.4,3716.9,1.8252646]
[1641019810026,19.08086986,3717.3,3716.8,1.8252646]
[1641019810225,15.69,3717.2,3716.8,1.8252646]
[1641019810426,15.69,3717.0,3716.8,1.8252646]
[1641019810625,6.86033644,3716.9,3716.8,1.8252646]
[1641019811082,6.86033644,3716.9,3715.7,1.8252646]
[1641019811083,0.88907297,3716.5,3715.7,1.8252646]
[1641019811479,0.88907297,3716.5,3715.8,0.00625265]
[1641019811679,0.67291,3716.3,3715.8,0.00625265]
[1641019811879,1.81049203,3716.2,3715.8,0.00625265]
[1641019812378,2.03162321,3716.6,3715.8,0.00625265]
[1641019812583,2.45425772,3716.1,3715.8,0.00625265]
[1641019812781,1.72987972,3716.0,3715.8,0.00625265]
[1641019812982,2.45425772,3716.1,3715.7,0.00682108]
[1641019813183,1.73265442,3716.0,3715.7,0.00682108]
[1641019813785,1.99322373,3716.2,3715.7,0.00682108]
[1641019813986,1.99322373,3716.2,3715.5,0.00795792]
[1641019814185,2.45425772,3716.1,3715.5,0.00795792]
[1641019814387,1.71629,3716.0,3715.5,0.00795792]
[1641019814825,1.68763664,3716.0,3715.5,0.00795792]
[1641019815029,2.45425772,3716.1,3715.5,0.00795792]
[1641019815226,1.69192143,3715.9,3715.5,0.00795792]
[1641019815826,2.45425772,3716.1,3715.5,0.00795792]
[1641019816026,2.45425772,3716.5,3715.5,0.00795792]
[1641019816229,1.9254487,3716.4,3715.5,0.00795792]
[1641019816427,2.45425772,3716.0,3715.5,0.00795792]
[1641019816625,1.73269753,3715.9,3715.5,0.00795792]
[1641019817226,1.89667646,3716.2,3715.5,0.00795792]
[1641019817827,2.45425772,3715.8,3715.5,0.00795792]
[1641019818029,1.88270854,3715.7,3715.3,1.78322252]
[1641019818228,1.88384539,3715.7,3715.3,1.78322252]
[1641019818673,1.88384539,3715.7,3714.9,0.94062411]
[1641019818876,0.00113685,3715.7,3714.9,0.94062411]
[1641019819072,0.00113685,3715.7,3715.0,0.00284212]
[1641019819278,2.45425772,3715.6,3715.0,0.00284212]
[1641019819574,1.87528697,3715.5,3715.0,0.00284212]
[1641019820177,0.00113685,3715.7,3714.7,0.00454739]
[1641019820375,0.00113685,3715.7,3714.3,1.0]
[1641019820376,2.13207461,3715.8,3714.4,4.8]
[1641019820776,0.00397896,3715.6,3714.6,0.00170528]
[1641019821075,0.00341054,3715.5,3714.6,0.00170528]
[1641019821276,0.00341054,3715.5,3715.2,1.35714131]
[1641019821479,2.07226899,3715.8,3715.2,1.35714131]
[1641019821480,0.00284211,3715.4,3715.2,1.35714131]
[1641019821876,0.00227369,3715.3,3715.2,1.35714131]
[1641019822513,0.00227369,3715.3,3714.6,0.00170528]
[1641019822916,0.00170526,3715.2,3714.6,0.88005749]
[1641019823414,0.00113684,3715.1,3714.7,0.00113685]
[1641019823816,0.00341054,3715.5,3714.7,0.00113685]
[1641019824118,1.99705772,3715.6,3714.7,0.00113685]
[1641019824119,0.00284211,3715.4,3714.7,0.00113685]
[1641019824517,0.00227369,3715.3,3714.7,0.00113685]
[1641019824717,2.56786697,3715.5,3714.7,0.00113685]
[1641019825117,2.56786697,3715.5,3714.7,0.00341054]
[1641019825620,2.56786697,3715.7,3714.7,0.00341054]
[1641019826067,2.56786697,3715.4,3714.7,0.00341054]
[1641019826873,2.56786697,3715.3,3714.7,0.00341054]
[1641019827678,3.24095697,3715.3,3714.7,0.00341054]
[1641019827875,3.24095697,3715.3,3714.7,1.83535956]
[1641019827876,2.56786697,3715.2,3714.7,1.83535956]
[1641019828077,2.56786697,3715.2,3714.3,1.8410438]
[1641019828277,2.56786697,3715.2,3714.8,0.00284212]
[1641019828478,2.56786697,3715.2,3714.4,0.81328121]
[1641019828877,2.56786697,3715.1,3714.5,0.00454739]
[1641019830029,2.56786697,3715.0,3714.5,0.00454739]
[1641019830628,2.56786697,3714.9,3714.5,0.00454739]
[1641019831433,0.73536,3715.5,3714.5,0.00454739]
[1641019832234,2.56244433,3715.4,3714.5,0.00454739]
[1641019832433,2.56244433,3715.4,3714.6,0.00099828]
[1641019832836,2.56244433,3715.4,3714.7,0.00341054]
[1641019833435,2.98865585,3715.3,3714.7,0.00341054]
[1641019833685,15.69,3715.2,3714.7,0.00341054]
[1641019833887,15.99,3715.2,3714.7,0.00341054]
[1641019834184,15.69,3715.1,3714.7,0.00341054]
[1641019834384,0.67325,3715.0,3714.7,0.00341054]
[1641019834586,2.56244433,3715.4,3714.7,0.00341054]
[1641019834986,1.28946502,3714.8,3714.7,0.00341054]
[1641019835886,3.98946502,3714.8,3714.7,0.00341054]
[1641019836084,1.28946502,3714.8,3714.7,0.00341054]
[1641019837329,1.58946502,3714.8,3714.7,0.00341054]
[1641019837633,1.58946502,3714.8,3713.5,1.83535956]
[1641019837634,4.8,3714.7,3713.8,1.37691057]
[1641019837830,15.69,3714.4,3713.8,1.37691057]
[1641019838032,18.04704264,3714.3,3713.9,0.00454739]
[1641019838231,15.69,3714.2,3713.9,0.00454739]
[1641019838435,2.73045264,3714.1,3713.9,0.00454739]
[1641019838634,4.2,3713.9,3713.3,1.13430008]
[1641019838835,2.05704264,3714.0,3713.3,1.13430008]
[1641019839035,0.0022737,3713.8,3713.3,1.13430008]
[1641019839235,0.00284212,3713.9,3713.3,1.13430008]
[1641019839434,0.00170527,3713.7,3713.1,0.77668959]
[1641019839638,0.67344,3713.6,3713.1,0.77668959]
[1641019839835,1.724503,3713.5,3713.2,0.00113684]
[1641019840035,1.9220459,3713.7,3713.2,0.00113684]
[1641019840435,0.00113685,3713.6,3713.2,0.00113684]
[1641019841470,2.53884439,3713.6,3713.2,0.00113684]
[1641019841668,1.86463218,3713.5,3713.2,0.00113684]
[1641019842469,0.00113685,3713.6,3713.2,0.00113684]
[1641019842871,2.53770754,3713.4,3713.2,0.00113684]
[1641019843071,2.53770754,3713.4,3713.3,0.00108058]
[1641019843270,1.73845901,3713.4,3713.3,0.00108058]
[1641019843874,2.53770754,3713.4,3713.1,0.72890701]
[1641019844074,1.69627087,3713.3,3713.1,0.72890701]
[1641019844676,2.53884439,3713.4,3713.1,0.72890701]
[1641019844929,2.53770754,3713.2,3713.1,0.72890701]
[1641019845527,2.38770754,3713.2,3713.1,0.72890701]
[1641019845931,2.38770754,3713.3,3713.1,0.72890701]
[1641019846530,0.00113685,3713.4,3713.1,0.72890701]
[1641019853518,0.00113685,3713.4,3713.2,0.00098466]
[1641019861623,0.00113685,3713.4,3713.3,4.87868333]
[1641019862022,0.00113685,3713.4,3713.3,5.87868333]
[1641019862223,0.00113685,3713.4,3713.3,4.87868333]
[1641019862423,0.00113685,3713.4,3713.3,5.87868333]
[1641019862625,0.00113685,3713.4,3713.3,5.93748333]
[1641019862828,0.00113685,3713.4,3713.3,0.13748333]
[1641019863226,0.00046222,3714.7,3713.4,3.75]
[1641019863429,0.00046222,3714.7,3713.4,4.42317]
[1641019863687,0.00568423,3714.4,3713.4,4.42317]
[1641019863989,0.0051158,3714.3,3714.2,0.0008397]
[1641019866393,2.51712155,3714.3,3714.2,0.0008397]
[1641019872484,4.28513914,3714.3,3714.2,0.0008397]
[1641019872782,4.29961813,3714.3,3714.2,0.0008397]
[1641019872987,4.31116336,3714.3,3714.2,0.0008397]
[1641019873185,4.26809358,3714.3,3714.2,0.0008397]
[1641019873388,4.29520707,3714.3,3714.2,0.0008397]
[1641019873589,2.51712155,3714.3,3714.2,0.0008397]
[1641019875221,4.27518743,3714.3,3714.2,0.0008397]
[1641019875622,2.51712155,3714.3,3714.2,0.0008397]
[1641019878230,4.26779795,3714.3,3714.2,0.0008397]
[1641019878429,4.26225073,3714.3,3714.2,0.0008397]
[1641019878678,4.26274288,3714.3,3714.2,0.0008397]
[1641019878881,2.51712155,3714.3,3714.2,0.0008397]
[1641019881478,0.0051158,3714.3,3714.2,0.0008397]
[1641019883123,2.49419273,3714.3,3714.2,0.0008397]
[1641019887184,0.0051158,3714.3,3714.2,0.0008397]
[1641019888389,2.49445235,3714.3,3714.2,0.0008397]
[1641019889091,0.0051158,3714.3,3714.2,0.0008397]
[1641019891236,2.50412708,3714.3,3714.2,0.0008397]
[1641019891436,0.0051158,3714.3,3714.2,0.0008397]
[1641019892038,2.50412708,3714.3,3714.2,0.0008397]
[1641019894287,2.49901128,3714.3,3714.2,0.0008397]
[1641019894485,2.34250334,3714.3,3714.2,4.1008397]
[1641019894685,2.34250334,3714.3,3714.2,5.1008397]
[1641019894885,2.34250334,3714.3,3714.2,4.1008397]
[1641019895087,2.34250334,3714.3,3714.2,5.1008397]
[1641019895284,0.108076,3714.7,3714.2,5.1008397]
[1641019895485,0.108076,3714.7,3714.3,0.82111957]
[1641019895686,0.00682107,3714.6,3714.3,1.82111957]
[1641019896086,0.00625265,3714.5,3714.3,1.82111957]
[1641019896486,0.00568423,3714.4,3714.3,1.82111957]
[1641019896789,0.00568423,3714.4,3714.3,3.16696957]
[1641019897724,0.06839288,3714.8,3714.4,4.65]
[1641019897922,0.06839288,3714.8,3714.6,0.67291]
[1641019898522,0.06839288,3714.8,3714.3,0.82111957]
[1641019898927,0.17646888,3714.8,3714.3,0.82111957]
[1641019899328,0.108076,3714.8,3714.4,0.67301]
[1641019903072,0.108076,3714.8,3714.3,0.82111957]
[1641019903472,0.108076,3714.8,3714.3,1.49414957]
[1641019903674,0.108076,3714.8,3714.2,1.83619926]
[1641019904174,0.108076,3714.8,3714.2,0.0008397]
[1641019906423,0.108076,3714.8,3714.2,0.6738897]
[1641019908573,0.108076,3714.8,3714.7,1.0227011]
[1641019908983,0.11034969,3714.8,3714.7,1.6956411]
[1641019913219,0.11034969,3714.8,3714.7,0.67294]
[1641019914829,0.11034969,3714.8,3714.7,1.71176259]
[1641019915429,0.108077,3715.1,3714.8,3.8]
[1641019915627,0.108077,3715.1,3714.9,1.0]
[1641019915825,0.108077,3715.1,3714.9,1.67282]
[1641019915826,0.00113685,3715.0,3714.9,1.67282]
[1641019916086,0.00113685,3715.0,3714.9,0.67282]
[1641019916282,0.00113685,3715.0,3714.9,1.67282]
[1641019916887,0.00113685,3715.0,3714.9,0.67282]
[1641019917184,0.00113685,3715.0,3714.9,1.67282]
[1641019917387,0.00113685,3715.0,3714.9,0.67282]
[1641019917586,0.00113685,3715.0,3714.9,1.67282]
[1641019917783,0.00113685,3715.0,3714.9,0.67282]
[1641019917984,0.00113685,3715.0,3714.9,1.67282]
[1641019918385,0.00113685,3715.0,3714.9,0.67282]